bitfinex/quotes_ETHUSD_20260120
["timestamp","ask_amount","ask_price","bid_price","bid_amount"]
[1768927445240,1.01473188,3003.0,3002.0,3.36440954]
[1768927445443,6.69545275,3003.2,3002.0,3.3311094]
[1768927445663,6.69545275,3003.2,3002.0,6.66222199]
[1768927446224,6.69545275,3003.2,3002.0,3.3311094]
[1768927446424,6.69545275,3003.6,3002.0,10.15673938]
[1768927446662,6.69545275,3003.6,3002.1,6.82562998]
[1768927446864,7.36499803,3003.6,3002.2,1.68189646]
[1768927447232,7.36499803,3003.6,3002.3,3.33077973]
[1768927448362,6.69545275,3003.5,3002.3,3.33077973]
[1768927448560,6.69545275,3003.5,3002.3,13.48718944]
[1768927449553,6.69545275,3003.9,3002.4,6.82562998]
[1768927449776,6.69545275,3003.9,3002.6,6.82562998]
[1768927450134,6.69545275,3003.9,3002.7,0.03330336]
[1768927450463,6.69545275,3003.9,3002.6,6.82562998]
[1768927450464,0.64731709,3004.1,3002.6,6.82562998]
[1768927450764,6.5286249,3004.3,3002.6,6.82562998]
[1768927450970,10.71994669,3005.0,3002.5,2.22379692]
[1768927450971,6.69545275,3004.7,3002.8,6.82562998]
[1768927451351,3.32817998,3004.7,3002.9,6.66022844]
[1768927451672,6.69545275,3004.6,3003.0,6.82562998]
[1768927451968,2.896166,3004.8,3003.2,6.82562998]
[1768927452170,1.66242794,3004.8,3003.4,6.82562998]
[1768927452687,6.69545275,3005.0,3003.4,6.82562998]
[1768927452845,6.69545275,3004.8,3003.5,0.542]
[1768927453052,3.534082,3004.6,3003.5,0.542]
[1768927453231,3.331391,3004.6,3003.5,0.542]
[1768927453662,6.69545275,3004.7,3003.5,3.87133966]
[1768927453835,6.69645275,3005.1,3003.6,7.21276395]
[1768927454040,2.437009,3005.0,3003.6,7.21276395]
[1768927454441,6.69645275,3005.1,3003.6,7.21276395]
[1768927454947,6.69545275,3005.0,3003.6,7.21276395]
[1768927455145,7.69786565,3005.0,3003.7,1.29476249]
[1768927455778,7.69786565,3005.0,3003.8,6.6582329]
[1768927455973,7.69786565,3005.0,3003.8,13.96683636]
[1768927456137,0.001,3005.1,3003.9,7.30860346]
[1768927456648,0.001,3005.1,3004.0,0.542]
[1768927456846,0.001,3005.1,3003.9,7.30860346]
[1768927457183,0.001,3005.1,3004.0,7.85060346]
[1768927457739,0.001,3005.1,3004.2,7.30860346]
[1768927458060,0.001,3005.1,3004.4,7.30860346]
[1768927458260,0.001,3005.1,3004.5,0.542]
[1768927458463,0.001,3005.1,3004.4,7.30860346]
[1768927458768,0.001,3005.1,3004.6,0.542]
[1768927458968,6.90896494,3005.8,3004.6,7.85060346]
[1768927459176,7.59986143,3005.8,3004.7,0.78506035]
[1768927459540,6.90896494,3005.7,3004.6,0.542]
[1768927459956,6.90896494,3005.6,3004.3,1.39661714]
[1768927460168,6.90896494,3005.5,3004.4,0.542]
[1768927460471,6.90896494,3005.5,3003.8,7.30860346]
[1768927460472,6.90896494,3005.5,3004.5,0.542]
[1768927460769,6.90896494,3005.3,3004.6,1e-08]
[1768927461368,6.90896494,3005.3,3003.8,7.30860346]
[1768927461583,6.90896494,3005.1,3003.9,0.542]
[1768927462271,6.90896494,3005.1,3004.0,0.542]
[1768927463352,0.001,3005.0,3004.0,0.542]
[1768927463551,0.69199649,3005.0,3004.0,1.26200054]
[1768927464166,0.001,3005.0,3004.2,7.30860346]
[1768927464369,3.32671378,3006.9,3004.2,7.30860346]
[1768927464370,6.90896494,3006.1,3004.2,7.30860346]
[1768927465443,6.90896494,3006.6,3004.4,7.30860346]
[1768927465639,6.90896494,3006.6,3004.6,7.30860346]
[1768927466176,6.90896494,3006.4,3004.8,7.30860346]
[1768927466371,6.90896494,3006.3,3004.7,3.32811927]
[1768927466676,6.65225344,3006.5,3004.8,0.33281193]
[1768927466677,6.90896494,3006.1,3004.8,0.33281193]
[1768927467071,6.90896494,3006.1,3004.8,7.64141539]
[1768927467376,6.90896494,3006.5,3004.8,7.64141539]
[1768927468160,6.90896494,3006.5,3005.0,7.30860346]
[1768927468357,6.90896494,3006.4,3005.1,0.542]
[1768927468676,6.90896494,3006.4,3005.2,0.542]
[1768927468677,1.35612864,3006.3,3005.2,0.542]
[1768927469268,1.35612864,3006.3,3005.2,7.85060346]
[1768927470172,10.23492181,3006.7,3005.3,3.32745482]
[1768927470377,10.23492181,3006.7,3005.3,10.63605828]
[1768927470577,3.171034,3006.6,3005.3,7.30860346]
[1768927470750,6.90896494,3006.6,3005.3,7.30860346]
[1768927471776,6.90896494,3006.6,3005.2,0.542]
[1768927471964,6.90896494,3006.4,3005.2,0.542]
[1768927472167,10.23524088,3006.4,3005.1,10.63621796]
[1768927472472,6.90896494,3006.3,3005.2,0.542]
[1768927472666,6.90896494,3006.3,3005.3,0.542]
[1768927473376,6.90896494,3006.3,3005.1,3.32766082]
[1768927473567,0.69089649,3006.2,3005.2,0.542]
[1768927474277,0.69089649,3006.2,3005.2,3.86945584]
[1768927474494,7.59986143,3006.2,3005.2,0.542]
[1768927475654,6.90996494,3006.0,3005.3,0.542]
[1768927475854,6.90996494,3006.0,3004.9,3.32785234]
[1768927476154,7.59996143,3005.9,3005.0,3.8697729]
[1768927477583,0.001,3006.0,3005.0,3.8697729]
[1768927478479,6.90996494,3006.0,3005.0,0.542]
[1768927478686,6.90996494,3006.0,3005.0,3.8697631]
[1768927479771,0.001,3006.0,3005.0,14.50615358]
[1768927479986,0.001,3006.0,3005.1,1.59358716]
[1768927480167,0.001,3006.0,3005.1,8.90219062]
[1768927480690,0.001,3006.0,3005.1,12.2297817]
[1768927481016,0.001,3006.0,3005.1,15.55745798]
[1768927481150,0.001,3006.0,3005.1,12.2297817]
[1768927481351,0.001,3006.0,3005.1,15.55745798]
[1768927481549,0.001,3006.0,3005.2,8.58578163]
[1768927481780,0.001,3006.0,3005.3,0.542]
[1768927481781,6.90996494,3006.0,3005.3,0.542]
[1768927483599,0.001,3006.0,3005.3,0.542]
[1768927484395,7.6835845,3006.0,3005.3,0.542]
[1768927485790,0.001,3006.0,3005.4,7.63312257]
[1768927486101,0.001,3006.0,3005.4,8.45063483]
[1768927487402,7.59220709,3006.0,3005.3,0.542]
[1768927487602,7.59220709,3006.0,3005.3,3.86945468]
[1768927487794,0.001,3005.7,3005.3,3.32745468]
[1768927487995,0.001,3005.7,3005.4,0.542]
[1768927489910,0.001,3005.7,3005.3,3.32743848]
[1768927490080,0.001,3005.7,3005.4,0.542]
[1768927492413,0.001,3005.7,3005.4,3.86934364]
[1768927492618,7.59120709,3005.6,3004.3,3.32855052]
[1768927492915,7.59120709,3005.4,3004.4,0.542]
[1768927493098,0.75922071,3005.5,3004.4,0.542]
[1768927493099,7.59120709,3005.2,3004.4,0.542]
[1768927495979,7.59120709,3005.0,3003.2,7.63312257]
[1768927496181,7.59120709,3005.0,3003.3,8.17512257]
[1768927496384,7.59120709,3004.8,3003.7,3.32915046]
[1768927496583,7.59120709,3004.8,3003.8,0.542]
[1768927496828,7.59120709,3004.8,3003.8,3.87111127]
[1768927497115,7.59120709,3004.8,3003.8,0.542]
[1768927497681,7.59120709,3004.8,3003.8,3.87109829]
[1768927497889,8.3503278,3004.7,3003.8,3.87109829]
[1768927498181,8.3503278,3004.7,3003.8,0.542]
[1768927498387,8.3503278,3004.7,3003.8,3.87109514]
[1768927498613,8.3503278,3004.7,3003.4,1.1504864]
[1768927498816,8.3503278,3004.7,3003.5,3.87143032]
[1768927499016,7.59120709,3004.5,3003.5,3.87143032]
[1768927499237,7.59120709,3004.5,3003.5,0.542]
[1768927499537,7.59120709,3004.5,3003.5,3.87143935]
[1768927499736,7.59120709,3004.5,3003.7,0.002]
[1768927500325,0.001,3005.4,3003.8,7.63312257]
[1768927500525,7.59120709,3005.3,3004.0,7.63312257]
[1768927500938,7.59120709,3005.3,3004.1,0.542]
[1768927501648,10.91874578,3005.3,3004.1,8.17512257]
[1768927501947,10.91874578,3005.3,3003.7,0.002]
[1768927501948,7.59120709,3005.0,3003.7,0.002]
[1768927502117,7.59120709,3005.0,3003.8,0.542]
[1768927502307,7.59120709,3004.8,3003.8,0.542]
[1768927503109,7.59120709,3004.8,3003.7,0.002]
[1768927503314,7.59120709,3004.8,3003.8,0.542]
[1768927503850,7.59120709,3004.6,3003.7,1e-08]
[1768927504210,7.59120709,3004.6,3003.8,0.542]
[1768927504415,7.59120709,3004.4,3003.7,1e-08]
[1768927504945,7.59120709,3004.2,3003.7,1e-08]
[1768927506245,7.59120709,3004.1,3003.7,1e-08]
[1768927506831,7.59120709,3004.1,3002.8,6.66045024]
[1768927507043,7.59120709,3004.1,3002.9,0.542]
[1768927507344,8.68319169,3004.1,3003.0,1.26224502]
[1768927507515,8.68319169,3004.1,3003.0,8.89536759]
[1768927507719,7.59120709,3004.4,3003.2,7.63312257]
[1768927507942,7.59120709,3004.7,3003.2,7.63312257]
[1768927508338,7.59120709,3004.7,3003.1,0.542]
[1768927508563,7.59120709,3004.3,3003.1,0.542]
[1768927509239,3.867437,3004.2,3003.1,0.542]
[1768927509441,7.00896258,3004.7,3003.1,0.542]
[1768927509442,7.97795079,3004.1,3003.1,1.00122254]
[1768927509643,7.97795079,3004.1,3003.2,3.32978156]
[1768927509864,7.97795079,3004.1,3003.1,3.87185341]
[1768927510050,7.97795079,3004.1,3003.1,0.542]
[1768927510653,7.97795079,3004.1,3003.1,7.2017824]
[1768927510871,7.59120709,3004.4,3003.2,7.63312257]
[1768927511235,3.327803,3005.0,3003.2,7.63312257]
[1768927511236,7.59120709,3004.8,3003.2,7.63312257]
[1768927511752,7.59120709,3004.8,3003.4,7.63312257]
[1768927511955,7.59120709,3004.6,3003.4,7.63312257]
[1768927512249,7.59120709,3004.6,3003.2,7.63312257]
[1768927512454,6.65602716,3004.8,3003.3,0.542]
[1768927512455,7.59120709,3004.4,3003.3,0.542]
[1768927513931,7.59120709,3004.2,3003.4,0.002]
[1768927514155,3.32856239,3004.3,3002.5,10.96364981]
[1768927514156,7.59120709,3003.7,3002.5,10.96364981]
[1768927514325,7.59120709,3003.7,3003.0,0.002]
[1768927514525,8.3504278,3003.6,3002.6,0.542]
[1768927515237,0.001,3003.8,3002.9,11.08278668]
[1768927515436,0.001,3003.8,3003.0,7.75271513]
[1768927515725,0.001,3003.8,3003.2,7.75271513]
[1768927515929,0.001,3003.8,3003.3,3.88312873]
[1768927516231,0.001,3003.8,3003.4,7.75271513]
[1768927516431,0.001,3003.8,3003.5,1.16358439]
[1768927518669,0.001,3003.8,3002.3,7.01396258]
[1768927518670,7.83103464,3003.8,3003.6,0.542]
[1768927518848,7.83103464,3003.8,3003.3,0.542]
[1768927518849,7.85697322,3003.6,3003.3,0.542]
[1768927519175,0.02693858,3003.6,3003.3,0.09416835]
[1768927519355,0.02693858,3003.6,3003.3,0.01431017]
[1768927519526,0.02693858,3003.6,3003.3,0.542]
[1768927519725,0.02693858,3003.6,3002.8,7.75271513]
[1768927519927,0.02693858,3003.6,3002.9,12.40006209]
[1768927520166,0.02693858,3003.6,3002.9,0.77527151]
[1768927520326,0.02693858,3003.6,3003.0,0.542]
[1768927520327,7.83003464,3003.5,3003.0,0.542]
[1768927520538,7.83003464,3003.5,3002.3,11.08841495]
[1768927520940,7.83003464,3003.5,3002.3,0.005]
[1768927521169,7.83003464,3003.5,3002.4,0.542]
[1768927521351,3.35631133,3003.6,3002.3,0.005]
[1768927521352,7.83003464,3003.3,3002.3,0.005]
[1768927521550,7.83003464,3003.1,3002.2,0.003]
[1768927521863,7.83003464,3003.1,2998.9,7.75271513]
[1768927521864,7.83003464,3002.5,2998.9,7.75271513]
[1768927522068,1.832,3003.0,3000.0,8.29711513]
[1768927522069,7.83003464,3002.1,3000.0,8.29711513]
[1768927522271,7.83003464,3001.7,3000.0,0.0024]
[1768927522480,7.83003464,3002.1,3000.0,7.75511513]
[1768927522634,7.83003464,3002.0,3000.2,7.75271513]
[1768927522974,7.83003464,3002.0,3000.3,0.542]
[1768927523128,7.83003464,3001.6,3000.4,0.82947151]
[1768927523327,8.37203464,3001.6,3000.2,8.29471513]
[1768927523832,8.37203464,3001.6,3000.0,0.0024]
[1768927524067,7.83003464,3001.5,3000.1,0.542]
[1768927524281,7.83003464,3001.5,2999.5,7.75271513]
[1768927524282,7.83003464,3000.9,2999.5,7.75271513]
[1768927524437,0.0008,3001.0,2999.9,7.75271513]
[1768927524773,0.0008,3001.0,3000.1,7.75271513]
[1768927524974,7.83003464,3002.1,3000.3,7.75271513]
[1768927525366,0.542,3002.3,3000.1,0.542]
[1768927525367,3.867437,3001.8,3000.1,0.542]
[1768927525567,7.83003464,3001.5,3000.1,0.542]
[1768927525749,7.83003464,3001.5,3000.0,0.542]
[1768927526079,7.83003464,3001.3,3000.0,0.542]
[1768927526385,7.83003464,3001.3,2999.6,3.33377089]
[1768927526386,7.83003464,3001.1,2999.8,3.33354407]
[1768927526546,7.83003464,3001.1,2999.9,0.33335441]
[1768927526746,7.83003464,3000.9,2999.1,7.00896258]
[1768927526958,7.83003464,3000.9,2999.2,0.542]
[1768927527367,7.83003464,3000.2,2999.0,0.002]
[1768927527561,7.83003464,2999.8,2999.0,0.002]
[1768927527801,7.83003464,2999.6,2999.0,0.002]
[1768927527963,7.83003464,3000.6,2999.0,0.002]
[1768927528153,8.37303464,3000.6,2999.0,0.002]
[1768927528484,3.33239332,3000.9,2999.0,0.002]
[1768927528485,7.83003464,3000.2,2999.0,0.002]
[1768927528643,7.83003464,3000.6,2999.0,0.002]
[1768927528844,7.83003464,3001.0,2999.3,7.75271513]
[1768927529087,8.6673381,3001.0,2999.4,9.7708829]
[1768927529287,7.83003464,3001.0,2999.5,7.75271513]
[1768927530073,7.83003464,3001.0,2999.6,3.87569902]
[1768927530273,7.83003464,3000.9,2999.6,3.87569902]
[1768927530582,0.543,3000.8,2999.6,6.66747685]
[1768927530791,8.37303464,3000.8,2999.7,0.66674769]
[1768927530977,0.543,3000.7,2999.6,6.66747685]
[1768927531586,0.543,3000.7,2999.6,3.33369902]
[1768927531790,0.543,3000.7,2999.6,6.66747685]
[1768927531945,7.83003464,3001.5,2999.7,7.75271513]
[1768927532150,7.83003464,3001.5,3000.0,7.00896258]
[1768927532469,0.543,3001.5,3000.1,7.75271513]
[1768927532673,7.83003464,3002.4,3000.6,7.75271513]
[1768927533005,1.32600346,3002.3,3000.8,7.75271513]
[1768927533143,0.78300346,3002.3,3001.0,7.00896258]
[1768927533342,0.39626814,3003.6,3001.6,7.75271513]
[1768927533343,10.78221764,3003.4,3001.6,7.75271513]
[1768927533593,7.83003464,3003.4,3001.7,8.29471513]
[1768927533896,8.37403464,3003.8,3002.1,7.75271513]
[1768927534048,3.867437,3003.7,3002.2,16.43266426]
[1768927534256,8.37403464,3003.8,3002.2,16.43266426]
[1768927534566,7.83003464,3003.6,3001.3,7.75271513]
[1768927534744,7.83003464,3003.6,3000.2,3.33308913]
[1768927534745,7.83003464,3003.0,3000.9,7.75271513]
[1768927534945,7.83003464,3002.8,3001.4,3.33177201]
[1768927535145,7.83003464,3002.6,3001.3,3.33188585]
[1768927535342,8.6673381,3002.5,3001.4,0.33318858]
[1768927535569,8.6673381,3002.5,3001.5,3.33163596]
[1768927535776,8.6673381,3002.5,3001.7,3.33142689]
[1768927535951,0.543,3002.8,3001.6,0.542]
[1768927536146,7.83003464,3003.0,3001.6,0.542]
[1768927536343,8.37303464,3002.9,3001.6,0.542]
[1768927536980,7.83003464,3003.5,3001.6,0.542]
[1768927537167,1.6589437,3003.4,3001.7,1.05368931]
[1768927537485,9.48897834,3003.4,3001.7,1.05368931]
[1768927537781,9.48897834,3003.4,3001.8,0.542]
[1768927537950,9.48897834,3003.4,3001.9,3.33122355]
[1768927538151,9.48897834,3003.4,3001.9,6.6624471]
[1768927538346,0.94889783,3003.3,3002.0,1.05357124]
[1768927538889,0.001,3003.2,3002.0,8.67004257]
[1768927539400,0.001,3003.2,3002.3,14.62543391]
[1768927539577,0.001,3003.2,3002.4,0.542]
[1768927539950,0.001,3003.8,3002.5,6.66111572]
[1768927540185,0.001,3003.8,3002.6,0.50127728]
[1768927540552,0.001,3003.8,3002.6,0.47827728]
[1768927541262,0.001,3003.8,3002.6,8.09474861]
[1768927542088,7.89898207,3003.8,3002.6,0.47827728]
[1768927542280,7.89898207,3003.8,3002.6,7.13912981]
[1768927542586,0.78989821,3003.7,3002.6,0.47827728]
[1768927542784,0.78989821,3003.7,3002.4,0.542]
[1768927542985,0.001,3003.8,3001.7,8.67016064]
[1768927542986,7.89798207,3003.5,3001.7,8.67016064]
[1768927543174,7.89798207,3003.5,3002.0,3.33104866]
[1768927543379,7.89798207,3003.5,3001.7,8.67016064]
[1768927543567,7.89798207,3003.5,3001.8,3.8733342]
[1768927543763,7.4305567,3003.3,3001.9,3.33121718]
[1768927544093,0.543,3003.6,3001.4,3.33175471]
[1768927544094,7.4305567,3002.9,3001.4,3.33175471]
[1768927544385,7.9735567,3002.8,3001.4,3.33177511]
[1768927544588,7.9735567,3002.8,3001.3,0.542]
[1768927545082,7.9321552,3002.6,3001.3,0.542]
[1768927545789,7.9321552,3002.6,3000.9,3.87428176]
[1768927545964,7.9321552,3002.6,3001.0,0.38742818]
[1768927545965,7.9321552,3002.3,3001.0,0.38742818]
[1768927546163,0.543,3002.2,3001.0,0.38742818]
[1768927546559,8.4751552,3002.2,3000.9,0.542]
[1768927546766,8.4751552,3002.2,3000.4,0.542]
[1768927546767,7.9321552,3002.0,3000.4,0.542]
[1768927546966,0.543,3002.2,3000.4,0.542]
[1768927546967,7.9321552,3001.8,3000.4,0.542]
[1768927547192,8.72537072,3002.5,3000.5,8.19180141]
[1768927547489,8.4751552,3002.2,3000.8,3.33238318]
[1768927547791,8.4751552,3002.2,3000.4,0.542]
[1768927547994,8.4751552,3002.2,2999.8,6.66711114]
[1768927547995,7.9321552,3001.8,2999.8,6.66711114]
[1768927548197,8.4751552,3001.7,3000.0,0.542]
[1768927548397,8.4751552,3001.7,3000.0,8.73380141]
[1768927549093,0.543,3001.6,3000.0,8.73380141]
[1768927549294,1.39051552,3001.6,3000.1,0.87338014]
[1768927549471,9.32267072,3001.6,3000.1,0.87338014]
[1768927549795,8.4751552,3001.5,3000.1,0.87338014]
[1768927549989,8.4751552,3001.5,3000.1,3.33322222]
[1768927550492,7.9321552,3001.3,3000.0,0.542]
[1768927550696,7.9321552,3001.3,3000.0,3.87533025]
[1768927550870,7.9321552,3001.3,3000.1,0.72087512]
[1768927551592,7.9321552,3001.3,3000.0,0.542]
[1768927552293,7.9321552,3001.2,3000.0,0.542]
[1768927553267,7.9321552,3001.2,2999.4,3.3339397]
[1768927553489,7.9321552,3001.0,2999.4,3.3339397]
[1768927553697,7.9321552,3000.8,2999.4,3.3339397]
[1768927553872,7.9321552,3000.8,2999.2,12.06801609]
[1768927553873,7.9321552,3000.6,2999.5,0.33339397]
[1768927554293,7.9321552,3000.6,2998.8,8.19180141]
[1768927554294,7.9321552,3000.6,2999.0,8.19380141]
[1768927554491,3.33268268,3000.6,2999.0,8.19380141]
[1768927554677,7.9321552,3000.5,2999.0,8.19380141]
[1768927554887,3.33268268,3000.6,2999.0,0.002]
[1768927554888,7.9321552,3000.3,2999.0,0.002]
[1768927555114,8.77967072,3000.2,2999.0,0.3898556]
[1768927555726,8.77967072,3000.2,2999.0,0.002]
[1768927556332,7.9321552,3000.0,2999.0,0.002]
[1768927556493,6.66644444,3000.1,2997.6,7.00896258]
[1768927556494,7.9321552,2999.8,2998.3,3.335223]
[1768927556835,7.9321552,2999.8,2998.5,8.19180141]
[1768927557001,8.77967072,3000.2,2998.5,8.73380141]
[1768927557191,8.4751552,3000.1,2998.6,1.54040134]
[1768927557533,0.128,3001.4,2998.7,8.19180141]
[1768927557825,0.128,3001.4,2998.8,9.57012648]
[1768927557826,7.9321552,3000.7,2998.8,9.57012648]
[1768927558035,7.9321552,3000.5,2998.8,9.57012648]
[1768927558193,7.9321552,3000.3,2998.8,1.92032507]
[1768927558529,7.9321552,3000.1,2998.5,3.87691024]
[1768927558768,7.9321552,3000.0,2998.8,6.66933226]
[1768927558949,7.9321552,3000.4,2998.9,8.19180141]
[1768927559237,7.9321552,3000.4,2999.1,7.00896258]
[1768927559387,7.9321552,3000.2,2999.0,1.48611337]
[1768927559588,7.9321552,3000.2,2998.2,11.52707831]
[1768927559589,7.9321552,3000.2,2998.6,3.33478941]
[1768927559794,7.9321552,3000.0,2998.4,0.542]
[1768927560001,1.01747862,3000.4,2998.4,3.33510072]
[1768927560002,7.9321552,2999.8,2998.4,3.33510072]
[1768927560326,0.543,2999.7,2998.4,8.22515253]
[1768927560530,8.4751552,2999.7,2998.5,1.48955991]
[1768927560824,7.9321552,2999.7,2998.2,3.33533215]
[1768927561127,8.4751552,2999.6,2998.2,3.33533215]
[1768927561330,8.4751552,2999.6,2998.1,3.33538093]
[1768927561637,8.4751552,2999.6,2998.2,11.52712727]
[1768927561853,8.4751552,2999.6,2998.2,8.19180141]
[1768927562004,8.77967072,2999.5,2998.2,1.20692209]
[1768927562195,8.77967072,2999.5,2998.1,3.33544578]
[1768927562400,8.77967072,2999.5,2999.0,0.002]
[1768927562609,7.9321552,2999.4,2998.8,0.002]
[1768927562803,7.9321552,2999.4,2998.0,3.87752909]
[1768927563009,0.543,2999.3,2998.1,8.19180141]
[1768927563262,7.9321552,2999.2,2998.2,1.54048875]
[1768927563421,7.9321552,2999.2,2998.0,3.33554471]
[1768927563620,7.9321552,2999.6,2998.0,14.86290315]
[1768927563823,7.9321552,2999.6,2998.2,8.19180141]
[1768927563824,0.543,2999.5,2998.2,8.19180141]
[1768927564044,0.543,2999.5,2998.0,6.67110174]
[1768927564045,7.9321552,3000.8,2998.6,8.19180141]
[1768927564348,7.9321552,3000.5,2999.0,8.19180141]
[1768927564545,8.4751552,3000.4,2998.9,11.52635741]
[1768927564848,7.9321552,3000.4,2999.0,8.19180141]
[1768927565056,0.543,3000.6,2999.0,8.19180141]
[1768927565620,8.4751552,3000.6,2999.0,8.19180141]
[1768927565940,7.9321552,3000.8,2999.4,6.48871433]
[1768927566140,8.4751552,3000.7,2999.2,0.542]
[1768927566352,0.543,3000.6,2999.3,6.66822258]
[1768927566522,0.543,3000.5,2999.3,3.33411129]
[1768927566916,8.4751552,3000.5,2999.2,0.542]
[1768927567152,8.4751552,3000.4,2999.3,1.01844762]
[1768927567352,8.4751552,3000.4,2999.1,1.45067484]
[1768927567353,8.4751552,3000.4,2998.8,8.19180141]
[1768927567672,7.9321552,3000.3,2999.1,3.33430126]
[1768927567953,0.543,3000.2,2999.1,8.19180141]
[1768927568146,8.4751552,3000.2,2999.2,1.15262159]
[1768927568364,0.543,3000.1,2999.0,8.22514252]
[1768927568530,8.77967072,3000.5,2999.0,8.19180141]
[1768927568846,0.543,3000.5,2999.4,8.19180141]
[1768927569147,0.543,3000.7,2999.4,8.19180141]
[1768927570438,8.4751552,3000.7,2999.4,8.19180141]
[1768927570626,8.4751552,3000.7,2999.4,11.52575707]
[1768927570831,3.33239477,3000.9,2999.4,11.52575707]
[1768927570832,0.543,3000.6,2999.5,8.19180141]
[1768927571031,7.9321552,3001.1,2999.6,9.73207713]
[1768927571229,7.9321552,3000.8,2999.6,1.54027572]
[1768927571546,7.9321552,3000.5,2999.2,3.33421667]
[1768927571847,7.9321552,3000.3,2999.0,6.48871433]
[1768927572051,7.9321552,3000.3,2999.2,3.33414643]
[1768927572250,7.9321552,3000.3,2999.3,4.00091911]
[1768927572544,7.9321552,3001.2,2999.5,8.19180141]
[1768927572848,3.33188951,3001.3,2999.5,8.19180141]
[1768927572849,7.9321552,3001.1,2999.5,8.19180141]
[1768927573466,7.9321552,3001.0,2999.5,8.19180141]
[1768927573635,0.543,3000.9,2999.8,14.68051574]
[1768927573947,0.543,3000.9,2999.9,1.46805157]
[1768927574326,7.9321552,3001.8,3000.3,8.19180141]
[1768927574568,6.48871433,3002.6,3000.3,8.19180141]
[1768927574569,0.543,3001.9,3000.6,14.68051574]
[1768927574731,6.66089388,3002.6,3000.4,0.543]
[1768927574732,7.9321552,3001.7,3000.4,0.543]
[1768927574937,8.82807202,3001.6,3000.4,0.543]
[1768927575236,8.28507202,3001.4,3000.3,3.33298811]
[1768927575430,3.409881,3001.7,3000.2,11.54011398]
[1768927575629,0.543,3001.6,3000.3,1.6970114]
[1768927575853,8.28507202,3001.9,3000.4,8.20703003]
[1768927576024,0.001,3001.1,3000.4,8.20703003]
[1768927576225,0.001,3001.1,3000.3,1.6970114]
[1768927576528,0.001,3001.1,2999.9,8.75003003]
[1768927577640,0.001,3001.1,3000.0,8.24036336]
[1768927577841,0.001,3001.1,3000.0,6.48871433]
[1768927578159,0.001,3001.1,3000.1,8.20703003]
[1768927578531,0.001,3001.1,3000.2,6.66622224]
[1768927578734,8.28507202,3002.3,3000.5,8.20703003]
[1768927579055,0.543,3002.2,3000.7,8.20703003]
[1768927579431,8.82807202,3002.2,3000.7,8.20703003]
[1768927579730,8.82807202,3002.2,3000.6,0.543]
[1768927580055,8.82807202,3002.2,3000.3,9.69435526]
[1768927580056,8.28507202,3001.8,3000.3,8.20703003]
[1768927580261,9.99234234,3002.3,3000.3,8.20703003]
[1768927580262,10.04332292,3001.7,3000.4,0.875003]
[1768927580555,8.28507202,3002.3,3000.7,8.20703003]
[1768927580761,0.543,3002.2,3000.8,11.53947471]
[1768927580949,11.61587464,3002.3,3000.8,11.53947471]
[1768927581144,1.30858813,3002.2,3000.9,9.3609775]
[1768927581335,0.543,3002.1,3000.9,9.3609775]
[1768927581541,0.543,3002.0,3000.9,9.3609775]
[1768927581735,1.30858813,3002.2,3000.9,9.3609775]
[1768927582160,0.543,3002.1,3000.9,9.3609775]
[1768927582329,0.543,3002.0,3001.0,9.80961672]
[1768927582870,0.543,3002.0,3001.0,13.14180281]
[1768927583163,0.543,3002.0,3001.0,9.80961672]
[1768927583333,0.543,3002.0,3001.0,1.60258669]
[1768927583528,0.543,3002.0,3000.9,3.33230589]
[1768927584056,0.543,3001.9,3001.1,8.20703003]
[1768927584442,0.543,3001.9,3000.9,3.33233167]
[1768927584760,0.543,3001.9,3000.9,3.33232605]
[1768927585533,8.28507202,3002.4,3001.0,8.20703003]
[1768927585755,1.3715072,3002.3,3001.2,8.20703003]
[1768927585939,0.543,3002.3,3001.2,8.20703003]
[1768927586262,0.543,3002.2,3001.2,8.20703003]
[1768927587263,3.33138059,3002.7,3001.3,8.20703003]
[1768927587264,0.001,3002.7,3001.3,8.20703003]
[1768927587557,0.544,3002.7,3001.3,8.20703003]
[1768927587760,0.544,3002.7,3001.5,8.20703003]
[1768927587964,0.001,3001.8,3001.5,8.74903003]
[1768927588164,0.001,3001.8,3001.5,0.542]
[1768927588334,0.543,3002.4,3001.5,8.74903003]
[1768927588539,8.82807202,3002.4,3001.5,0.542]
[1768927588745,8.82807202,3002.4,3000.8,9.82112134]
[1768927588746,8.28507202,3002.3,3001.0,3.3321725]
[1768927588945,8.28507202,3002.3,3000.9,11.53933295]
[1768927588946,0.543,3002.3,3001.3,3.33179595]
[1768927589267,0.543,3002.3,3001.2,8.20703003]
[1768927589442,0.8828072,3002.4,3001.2,8.20703003]
[1768927589632,9.46632203,3005.4,3001.7,6.48871433]
[1768927589633,8.28507202,3004.1,3001.7,6.48871433]
[1768927589837,8.28607202,3003.8,3003.2,3.867437]
[1768927590034,8.28607202,3003.8,3001.8,0.99736544]
[1768927590035,8.28607202,3003.8,3002.8,3.867437]
[1768927590238,8.28507202,3003.6,3002.8,3.867437]
[1768927590434,8.28507202,3003.6,3001.8,0.91757774]
[1768927590435,8.28507202,3003.6,3002.6,3.867437]
[1768927590656,8.28507202,3003.6,3002.7,3.33033603]
[1768927590844,8.28507202,3003.6,3002.8,3.867437]
[1768927591156,9.20196994,3003.6,3002.6,3.33042068]
[1768927591354,9.20196994,3003.6,3002.6,3.867437]
[1768927591355,8.28507202,3003.4,3002.6,3.867437]
[1768927592177,8.28507202,3003.1,3001.5,3.33164322]
[1768927592468,0.543,3003.5,3001.4,3.33169577]
[1768927592469,8.28507202,3002.9,3001.4,3.33169577]
[1768927592670,8.28507202,3002.7,3001.5,3.74689293]
[1768927593047,0.8285072,3002.8,3001.5,15.28559045]
[1768927593269,0.001,3003.8,3001.9,8.20703003]
[1768927593452,0.001,3005.7,3001.9,8.20703003]
[1768927593453,8.28507202,3004.4,3002.9,14.69574436]
[1768927593659,8.28507202,3004.4,3003.0,0.542]
[1768927593966,8.28507202,3004.4,3003.1,1.52377444]
[1768927593967,0.8285072,3004.3,3003.1,1.52377444]
[1768927594165,0.8285072,3004.3,3003.1,2.06577444]
[1768927594378,8.28507202,3004.8,3003.2,8.20703003]
[1768927594873,8.28507202,3004.8,3003.3,6.65934138]
[1768927595246,8.28507202,3004.8,3003.3,14.86637141]
[1768927595447,0.8828072,3004.7,3003.3,19.55876139]